[Event "German Bundesliga 2022-23"]
[Site "Germany"]
[Date "2022.10.23"]
[Round "2.2"]
[White "Plat, Vojtech"]
[Black "Jones, Gawain C B"]
[Result "1/2-1/2"]
[ECO "E65"]
[WhiteElo "2546"]
[BlackElo "2626"]
[Annotator "TA"]
[PlyCount "156"]
[EventDate "2022.10.21"]
[EventType "team-tourn"]
[EventCountry "GER"]
[SourceTitle "playchess.com"]
[Source "ChessBase"]
[SourceQuality "1"]
[TimeControl "40/6000+30:3000+30"]

{[%evp 21,156,1,4,8,8,7,5,26,13,0,0,0,0,0,0,-12,-14,-12,-10,-9,-11,-76,-79,-118,-122,-126,-125,-113,-106,-106,-106,-103,-89,-97,-89,-89,-104,-103,-103,-117,-117,-118,-110,-124,-99,-99,-99,-99,-99,-99,-99,-99,-99,-99,-91,-91,-91,-91,-91,-91,-91,-91,-91,-91,-91,-91,-89,-89,-89,-89,0,-84,-49,-63,-63,-63,-63,-63,-49,-49,-49,-56,-49,-49,-49,-49,-48,-48,-48,-48,-48,-48,-48,-48,-48,-48,-48,-48,-48,-48,-48,-48,-49,-49,-48,-48,-48,-48,-48,-48,-41,-48,-41,-48,0,-49,-48,-48,-48,-48,-48,-48,0,-48,-48,-48,-48,-48,-48,-55,-48,-48,15,15,15,15,15]} 1. d4 {[%emt 0:00:03]} Nf6 {[%emt 0:01:02]} 2. c4 {[%emt 0:00:06]} g6 {[%emt 0:00:13]} 3. g3 {[%emt 0:00:05]} Bg7 {[%emt 0:00:08]} 4. Bg2 {[%emt 0:00:05]} O-O {[%emt 0:00:12]} 5. Nc3 {[%emt 0:00:05]} d6 {[%emt 0:00:08]} 6. Nf3 {[%emt 0:00:06]} c5 {[%emt 0:00:15]} 7. O-O {[%emt 0:00:09]} Nc6 {[%emt 0:00:04]} 8. dxc5 {[%emt 0:00:06]} dxc5 {[%emt 0:00:06]} 9. Be3 {[%emt 0:00:02]} Be6 {[%emt 0:03:29]} 10. Bxc5 {[%emt 0:04:39]} Qa5 {[%emt 0:05:06]} 11. Ba3 {[%emt 0:02:55]} Bxc4 {[%emt 0:01:13]} 12. Nd2 {[%emt 0:16:48] E65: King's Indian: Fianchetto: 6...c5 7 0-0 without d5 by White.} Be6 {[%emt 0:01:11]} 13. Qa4 {[%emt 0:07:17]} Qxa4 {[%emt 0:26:13]} (13... Qh5 {feels hotter.} 14. Bxc6 Ng4 15. h4 bxc6 16. Bxe7 Rfe8) 14. Nxa4 {[%emt 0:00:11][%cal Bc3a4,Ba4c5,Bc5b7][%mdl 32]} Rfd8 {[%emt 0:00:10] [#]} 15. Nb3 $146 {[%emt 0:13:06]} ({Predecessor:} 15. Rfd1 Bg4 16. Nc3 Nd7 17. h3 Be6 18. Nd5 Bxd5 19. Bxd5 Nb6 20. Bxc6 bxc6 21. Ne4 {½-½ (32) Yang,K (2505)-Chiku Ratte,O (2406) Kingston 2019}) 15... Bd5 {[%emt 0:02:29]} 16. Rac1 {[%emt 0:02:35]} Rac8 {[%emt 0:04:32] And now ...Bxg2 would win.} 17. Rfd1 {[%emt 0:14:57]} b5 {[%emt 0:08:34]} (17... b6 {seems wilder.} 18. Rxc6 Rxc6 19. Bxe7 Re8) 18. Bxd5 {[%emt 0:04:31]} Nxd5 {[%emt 0:03:16]} (18... bxa4 19. Bxc6 Rxd1+ 20. Rxd1 $16) 19. Nac5 {[%emt 0:06:50]} b4 {[%emt 0:15:20]} 20. Nb7 {[%emt 0:00:06]} Rd7 $36 {[%emt 0:00:28][%cal Bd8d7,Bd7b7,Bb7b4][%mdl 2080] White is under pressure.} 21. Bxb4 {[%emt 0:05:45]} Bxb2 $17 {[%emt 0:03:49][%cal Bg7b2,Bb2a3,Ba3d6][%mdl 32]} 22. Rc5 {[%emt 0:20:38] Black must now prevent N7a5.} Rxb7 {[%emt 0:00:46]} 23. Rdxd5 {[%emt 0:00:05][%cal Ob3a5]} Rxb4 {[%emt 0:00:33]} 24. Rc2 {[%emt 0:00:01]} Ba3 {[%emt 0:09:51] aiming for ...Rbb8.} 25. Ra5 {[%emt 0:01:00] [#]} Rxb3 {[%emt 0:00:59]} 26. axb3 {[%emt 0:00:03]} Nxa5 {[%emt 0:00:09]} 27. Rxc8+ {[%emt 0:00:02]} Kg7 {[%emt 0:00:03]} 28. Rc7 {[%emt 0:00:08]} Bd6 {[%emt 0:00:28]} ({Resist} 28... Nxb3 29. Rc3 $16) 29. Rxa7 {[%emt 0:00:03]} Nxb3 {[%emt 0:00:05]} 30. Ra4 {[%emt 0:00:18]} f5 {[%emt 0:02:42]} 31. Kg2 {[%emt 0:00:26]} Nc5 {[%emt 0:01:24]} 32. Rc4 {[%emt 0:00:30]} g5 {[%emt 0:03:32]} 33. g4 {[%emt 0:01:03]} fxg4 {[%emt 0:05:51]} 34. Rxg4 {[%emt 0:00:25]} Bf4 {[%emt 0:00:06] Strongly threatening ...h5.} 35. Kf1 {[%emt 0:00:37]} Kg6 {[%emt 0:04:25]} 36. h3 {[%emt 0:01:06]} Kf5 {[%emt 0:02:41]} 37. Rg1 {[%emt 0:01:13][%cal Bg4g1,Bg1a1,Ba1a5][%mdl 32]} Ne6 {[%emt 0:01:42]} 38. Kg2 {[%emt 0:00:51]} Bd6 {[%emt 0:00:40] Hoping for ...Nf4+.} 39. e3 {[%emt 0:00:04] Inhibits Nf4+.} Nf8 {[%emt 0:00:44]} 40. Ra1 {[%emt 0:01:30]} Ng6 {[%emt 0:01:03]} 41. Ra5+ {[%emt 0:53:18]} Ne5 {[%emt 0:54:44]} 42. Ra8 {[%emt 0:01:01]} Kf6 {[%emt 0:00:00]} 43. Ra4 {[%emt 0:00:00]} h5 {[%emt 0:00:00]} 44. Ra5 {[%emt 0:00:00]} Kf5 {[%emt 0:00:00]} 45. Rd5 {[%emt 0:00:00]} Kf6 {[%emt 0:00:00]} 46. Ra5 $1 {[%emt 0:00:00]} g4 {[%emt 0:00:00]} 47. hxg4 {[%emt 0:00:00]} hxg4 {[%emt 0:00:00]} 48. Ra4 {[%emt 0:00:00]} Kg5 {[%emt 0:00:00]} 49. Ra5 {[%emt 0:00:00]} Kf5 {[%emt 0:00:00]} 50. Rd5 {[%emt 0:00:00]} Kg6 {[%emt 0:00:00]} 51. Kg3 {[%emt 0:00:00]} Kf7 {[%emt 0:00:00]} 52. Rb5 {[%emt 0:00:00]} Kf6 {[%emt 0:00:00]} 53. Kf4 {[%emt 0:00:00]} Kg6 {[%emt 0:00:00]} 54. Rb1 {[%emt 0:00:00]} e6 {[%emt 0:00:00]} 55. Rb7 {[%emt 0:00:00]} Kf6 {[%emt 0:00:00]} 56. Rb1 {[%emt 0:00:00]} Bb4 {[%emt 0:00:00]} 57. Ke4 {[%emt 0:00:00]} Bf8 {[%emt 0:00:00]} 58. Kf4 {[%emt 0:00:00]} Bh6+ {[%emt 0:00:00]} 59. Kg3 {[%emt 0:00:00]} Kf5 {[%emt 0:00:00]} 60. Rb5 {[%emt 0:00:00]} Bf8 {[%emt 0:00:00]} 61. Ra5 {[%emt 0:00:00]} Bb4 {[%emt 0:00:00]} 62. Rb5 {[%emt 0:01:29]} Bc3 {[%emt 0:00:00]} 63. Kg2 {[%emt 0:00:53]} Bd2 {[%emt 0:01:24]} 64. Kg3 {[%emt 0:01:14]} Be1 {[%emt 0:00:23]} 65. Kg2 {[%emt 0:00:07]} Kf6 {[%emt 0:01:09]} 66. Kg3 {[%emt 0:01:13]} Bc3 {[%emt 0:00:38]} 67. Kf4 {[%emt 0:00:54]} Bb4 {[%emt 0:00:22]} 68. Kg3 {[%emt 0:00:36]} (68. Rxe5 Bd6 69. Kxg4 Kxe5 $19) (68. Ke4 $1 $11 Bd6 69. Kf4) 68... Be7 {[%emt 0:01:41]} 69. Kf4 {[%emt 0:00:50] [#]} Bd8 $1 {[%emt 0:00:13]} 70. Rb1 {[%emt 0:00:36]} ({Don't go for} 70. Rxe5 $2 Bc7 71. Kxg4 Kxe5 $19) 70... Bc7 {[%emt 0:01:21]} 71. Rb7 {[%emt 0:02:13]} Bd6 {[%emt 0:00:09]} (71... Ba5 $1 $15) 72. Rb5 {[%emt 0:00:31]} (72. Rb1 $1 $11 {was preferrable.}) 72... Nd3+ $15 {[%emt 0:00:29]} 73. Kxg4 {[%emt 0:00:08]} Nxf2+ {[%emt 0:00:04]} 74. Kf3 {[%emt 0:00:09]} Nd3 {[%emt 0:00:05]} 75. Rb1 {[%emt 0:00:29]} Ke5 {[%emt 0:00:51]} 76. Rh1 {[%emt 0:00:13]} Kd5 {[%emt 0:01:04]} (76... Nc5 $15) 77. Rd1 $11 {[%emt 0:01:05][%mdl 1024] White has compensation.} Kc4 {[%emt 0:00:04]} 78. Ke2 {[%emt 0:00:10]} Nf4+ $1 {[%emt 0:00:19] Weighted Error Value: White=0.04 (flawless) /Black=0.04 (flawless)} 1/2-1/2

[Event "German Bundesliga 2022-23"]
[Site "Germany"]
[Date "2022.10.23"]
[Round "2.3"]
[White "Saric, Ivan"]
[Black "Pavlidis, Antonios"]
[Result "1/2-1/2"]
[ECO "C77"]
[WhiteElo "2668"]
[BlackElo "2550"]
[Annotator "TA"]
[PlyCount "59"]
[EventDate "2022.10.21"]
[EventType "team-tourn"]
[EventCountry "GER"]
[SourceTitle "playchess.com"]
[Source "ChessBase"]
[SourceQuality "1"]
[TimeControl "40/6000+30:3000+30"]

{[%evp 11,59,19,18,8,8,0,0,0,0,-8,-5,0,6,-71,-68,-75,-74,-167,-175,-205,-194,-186,-171,-162,-179,-168,-20,-47,-45,-44,0,-87,-85,-98,-89,-81,-52,-39,-49,-45,-55,-73,-81,-93,-98,-120,-111,-119,-57,-23]} 1. e4 {[%emt 0:00:02]} e5 {[%emt 0:00:14]} 2. Nf3 {[%emt 0:00:05]} Nc6 {[%emt 0:00:08]} 3. Bb5 {[%emt 0:01:43]} a6 {[%emt 0:00:12]} 4. Ba4 {[%emt 0:00:03]} Nf6 {[%emt 0:00:11]} 5. d3 {[%emt 0:02:00]} Bc5 {[%emt 0:01:54]} 6. Bxc6 {[%emt 0:04:23]} dxc6 {[%emt 0:01:04]} 7. O-O {[%emt 0:00:14] C77: Ruy Lopez: 3...a6 4 Ba4 Nf6, unusual lines.} Qe7 {[%emt 0:04:23]} 8. Nbd2 {[%emt 0:05:11]} Bg4 {[%emt 0:04:23]} 9. h3 {[%emt 0:02:40] The position is equal.} Bh5 {[%emt 0:00:26]} 10. Nc4 {[%emt 0:00:51]} Nd7 {[%emt 0:01:21] [#]} 11. Bd2 $146 {[%emt 0:00:33]} ({Predecessor:} 11. c3 f6 12. b4 Bd6 13. a3 O-O 14. Ne3 Rfd8 15. Nf5 Qf7 16. Qe2 a5 17. Rb1 axb4 18. axb4 {½-½ (76) Durarbayli,V (2625)-Predke,A (2683) Krasnaya Polyana 2021}) 11... O-O-O {[%emt 0:07:00]} 12. Rb1 {[%emt 0:01:51]} (12. Qe2 $11 {keeps the balance.}) 12... f5 $1 $17 {[%emt 0:00:30]} 13. exf5 {[%emt 0:00:30]} e4 {[%emt 0:19:19]} 14. g4 {[%emt 0:34:21]} (14. Bg5 $17 Bxf3 15. Bxe7 Bxd1 16. Bxd8 Bxc2 17. Rbc1 Bxd3 18. Bg5) 14... exf3 $19 {[%emt 0:00:30]} 15. gxh5 {[%emt 0:00:30]} b5 {[%emt 0:05:35][%cal Bb7b5,Bb5c4][%mdl 32]} 16. b4 {[%emt 0:02:35]} ({Reject} 16. Qxf3 bxc4 17. Rbe1 Qd6) 16... Ba7 {[%emt 0:18:16]} ({Worse is} 16... bxc4 17. bxc5 Ne5 18. Re1 $15) 17. Qxf3 {[%emt 0:00:12]} bxc4 {[%emt 0:00:04]} 18. Qxc6 {[%emt 0:02:45] [#] Black must now prevent Qa8+.} Ne5 {[%emt 0:10:46]} (18... Nb6 $1 $19 19. Be3 cxd3 20. cxd3 Qd7) 19. Qa8+ $1 $11 {[%emt 0:08:08]} Kd7 {[%emt 0:00:05]} 20. Qe4 {[%emt 0:02:03] Threatens to win with Rbe1.} Nc6 {[%emt 0:04:24] aiming for ...Qxe4.} 21. Qxc4 {[%emt 0:05:40] [#]} ({But not} 21. Qd5+ Qd6 22. Qxd6+ Kxd6 23. dxc4 Ke5 $17) (21. Qg4 $11 Ne5 22. Qe4 (22. f6+ $2 Qe6 $19) 22... cxd3 23. Bf4) 21... Nd4 $1 $17 {[%emt 0:01:03] Strongly threatening ...Nf3+.} 22. Kg2 {[%emt 0:11:05] Prevents Nf3.} Qd6 $36 {[%emt 0:02:06][%mdl 2048] White is under strong pressure.} 23. Be3 {[%emt 0:01:32]} Qc6+ {[%emt 0:02:32]} 24. Qxc6+ {[%emt 0:00:23]} Nxc6 {[%emt 0:00:04]} 25. a4 {[%emt 0:01:39]} Ra8 {[%emt 0:01:22]} 26. b5 {[%emt 0:03:31]} Ne7 {[%emt 0:00:35]} 27. Bxa7 {[%emt 0:06:15]} Rxa7 {[%emt 0:00:03]} 28. b6 {[%emt 0:00:43]} cxb6 {[%emt 0:04:36]} 29. Rxb6 {[%emt 0:00:03]} Nxf5 {[%emt 0:00:21]} (29... Nd5 $17 30. Rb3 Rf8) 30. Re1 {[%emt 0:01:19] Weighted Error Value: White=0.20 (precise) /Black=0.17 (very precise)} 1/2-1/2

[Event "German Bundesliga 2022-23"]
[Site "Germany"]
[Date "2022.10.23"]
[Round "2.3"]
[White "Tabatabaei, M. Amin"]
[Black "Michalik, Peter"]
[Result "0-1"]
[ECO "C54"]
[WhiteElo "2657"]
[BlackElo "2558"]
[Annotator "TA"]
[PlyCount "114"]
[EventDate "2022.10.21"]
[EventType "team-tourn"]
[EventCountry "GER"]
[SourceTitle "playchess.com"]
[Source "ChessBase"]
[SourceQuality "1"]
[TimeControl "40/6000+30:3000+30"]

{[%evp 12,114,10,8,12,8,25,22,15,1,7,0,0,16,18,0,0,0,0,0,0,0,0,0,0,-51,-42,-88,-102,-133,-97,-219,-214,-291,-249,-661,-656,-819,-368,-379,-354,-378,-370,-366,-362,-365,-237,-219,-232,-235,-236,-250,-252,-266,-268,-264,-267,-239,-247,-343,-332,-359,-359,-347,-331,-415,-327,-368,-340,-397,-397,-390,-383,-383,-383,-738,-726,-590,-352,-6725,-6725,-6725,-6725,-6725,-6725,-6588,-1492,-6725,-6725,-6725,-6725,-6717,-6717,-6710,-6699,-6684,-6643,-6635,-6603,-6595,-6595,-6595,-6595,-5377,-5324]} 1. e4 {[%emt 0:00:21]} e5 {[%emt 0:00:07]} 2. Nf3 {[%emt 0:00:07]} Nc6 {[%emt 0:00:05]} 3. Bc4 {[%emt 0:00:07]} Bc5 {[%emt 0:00:17]} 4. O-O {[%emt 0:00:12]} Nf6 {[%emt 0:00:15]} 5. d3 {[%emt 0:00:08]} O-O {[%emt 0:00:31]} 6. h3 {[%emt 0:00:17]} d6 {[%emt 0:00:45]} 7. c3 {[%emt 0:00:21]} a5 {[%emt 0:00:09] C54: Giuoco Piano: 4 c3 Nf6, main lines with 5 d4 and 5 d3.} 8. Re1 {[%emt 0:00:13]} Ba7 {[%emt 0:00:20]} 9. Nbd2 {[%emt 0:01:17]} Ne7 {[%emt 0:03:17] The position is equal.} 10. Nf1 {[%emt 0:01:49]} Ng6 {[%emt 0:00:46]} 11. Ng3 {[%emt 0:00:26]} c6 {[%emt 0:08:03]} 12. Bb3 {[%emt 0:02:38]} d5 {[%emt 0:03:55]} 13. Bg5 {[%emt 0:03:05]} h6 {[%emt 0:00:48]} ({Don't do} 13... Qb6 14. Be3 Qa6 15. Bxa7 Qxa7 16. exd5 $14) 14. Bxf6 {[%emt 0:00:37]} Qxf6 {[%emt 0:00:07]} 15. exd5 {[%emt 0:03:58]} a4 $1 {[%emt 0:08:21]} 16. Bxa4 {[%emt 0:01:20] Ne4 is the strong threat.} cxd5 {[%emt 0:00:08]} 17. Bb3 {[%emt 0:02:07] [#]} Rd8 $146 {[%emt 0:04:38]} ({Predecessor:} 17... Qd6 18. Qd2 Be6 19. Kh1 Rad8 20. Re2 f6 21. Rd1 Kh8 22. Qe1 Nf4 23. Red2 Qd7 {0-1 (57) Silva Rodriguez,F (2253)-Krysa,L (2516) Linares 2019}) 18. d4 {[%emt 0:06:42]} (18. Rc1 $11) 18... e4 $15 {[%emt 0:01:42][%mdl 1024] Black has compensation.} 19. Nh2 {[%emt 0:03:38]} (19. Nd2 $15) 19... Bb8 $17 {[%emt 0:01:13]} 20. Ng4 {[%emt 0:18:57]} Qg5 {[%emt 0:05:50] Black is more active.} 21. Kh1 {[%emt 0:17:32] White does not recover from this.} (21. c4 $17 {is a better defense.}) 21... Nf4 $19 {[%emt 0:04:00]} 22. Bc2 {[%emt 0:00:54]} Ra6 {[%emt 0:02:23] Threatens to win with ...h5.} 23. c4 $2 {[%emt 0:25:00]} (23. Rg1) 23... h5 {[%emt 0:07:05][%cal Rc8g4]} 24. Ne3 {[%emt 0:00:02] [#]} h4 {[%emt 0:00:09]} (24... Bxh3 $142 $1 {[%mdl 512]} 25. cxd5 (25. gxh3 Nxh3) 25... Bxg2+ 26. Nxg2 h4 27. Nxf4 hxg3) 25. Nxe4 {[%emt 0:02:29]} dxe4 {[%emt 0:00:08]} 26. Bxe4 {[%emt 0:00:03]} Re6 {[%emt 0:05:43]} 27. Qf3 {[%emt 0:01:54]} Rf6 {[%emt 0:06:15] Inhibits Bf5.} ({Don't blunder} 27... Rxd4 $2 28. Bxb7 Bxb7 29. Qxb7 $19) 28. Ng4 {[%emt 0:02:11]} Bxg4 {[%emt 0:00:09]} ({And not} 28... Rxd4 29. Nxf6+ Qxf6 30. Bxb7 $15) 29. Qxg4 {[%emt 0:00:45]} Qxg4 {[%emt 0:00:07]} 30. hxg4 {[%emt 0:00:03]} Rxd4 {[%emt 0:00:13]} 31. Rad1 {[%emt 0:05:31]} Ba7 {[%emt 0:06:46]} 32. Rxd4 {[%emt 0:04:39]} Bxd4 {[%emt 0:00:19]} 33. Rd1 {[%emt 0:00:02]} Ne6 {[%emt 0:00:30]} 34. f3 {[%emt 0:02:02]} Bxb2 {[%emt 0:00:19]} 35. Rb1 {[%emt 0:01:34]} Bd4 {[%emt 0:05:00]} 36. Rxb7 {[%emt 0:00:24][%cal Og4g5]} g5 {[%emt 0:00:07]} 37. Rd7 {[%emt 0:01:22]} Bf2 {[%emt 0:01:36]} 38. Rd5 {[%emt 0:02:03]} Kf8 {[%emt 0:00:28]} 39. Rf5 {[%emt 0:00:41]} Rxf5 {[%emt 0:00:49]} 40. gxf5 {[%emt 0:00:07]} Nf4 {[%emt 0:00:11]} 41. a4 {[%emt 0:51:08]} Bb6 {[%emt 0:53:32]} 42. Kh2 {[%emt 0:00:09]} Ke7 {[%emt 0:00:05]} 43. g3 $2 {[%emt 0:00:11]} (43. f6+ Kxf6 44. g3) 43... hxg3+ {[%emt 0:00:04]} 44. Kxg3 {[%emt 0:00:04]} f6 {[%emt 0:00:09] [#] White must now prevent ...Kd6.} 45. Kg4 $2 {[%emt 0:01:09]} (45. Bb7) 45... Kd6 {[%emt 0:00:05] Black is clearly winning.} 46. Bb7 {[%emt 0:00:07]} Kc5 {[%emt 0:00:09]} 47. Ba6 {[%emt 0:00:05]} Kb4 {[%emt 0:00:03]} 48. Bb5 {[%emt 0:00:03]} Bf2 {[%emt 0:00:10]} (48... Be3 $142 49. Bc6 Nd3) 49. Bd7 {[%emt 0:00:41]} Kxc4 {[%emt 0:00:22]} 50. a5 {[%emt 0:00:02]} Kb4 {[%emt 0:00:30]} 51. a6 {[%emt 0:00:06]} Ka5 {[%emt 0:00:07]} 52. Bc8 {[%emt 0:00:09]} Kb6 {[%emt 0:00:10]} 53. Bb7 {[%emt 0:00:07]} Bd4 {[%emt 0:00:15]} 54. Bc8 {[%emt 0:00:10]} Be5 {[%emt 0:00:11]} 55. Bb7 {[%emt 0:00:42]} Nd3 {[%emt 0:00:06]} 56. Kh5 {[%emt 0:03:59]} Nc5 {[%emt 0:03:30][%csl LRa6,LRb7]} 57. Bd5 {[%emt 0:00:00]} Nxa6 {[%emt 0:00:00] Weighted Error Value: White=0.59/Black=0.31} 0-1

[Event "German Bundesliga 2022-23"]
[Site "Germany"]
[Date "2022.10.23"]
[Round "2.3"]
[White "Stevic, Hrvoje"]
[Black "Fridman, Daniel"]
[Result "1/2-1/2"]
[ECO "C01"]
[WhiteElo "2565"]
[BlackElo "2603"]
[Annotator "TA"]
[PlyCount "40"]
[EventDate "2022.10.21"]
[EventType "team-tourn"]
[EventCountry "GER"]
[SourceTitle "playchess.com"]
[Source "ChessBase"]
[SourceQuality "1"]
[TimeControl "40/6000+30:3000+30"]

{[%evp 10,40,18,13,8,13,7,13,16,0,0,0,0,0,0,0,13,10,13,3,11,12,6,3,4,0,0,-8,14,17,15,12,12]} 1. e4 {[%emt 0:00:01]} e6 {[%emt 0:01:53]} 2. d4 {[%emt 0:00:11]} d5 {[%emt 0:00:05]} 3. exd5 {[%emt 0:00:08]} exd5 {[%emt 0:00:04]} 4. Nf3 {[%emt 0:00:09]} Nf6 {[%emt 0:00:07]} 5. Bd3 {[%emt 0:00:09]} Bd6 {[%emt 0:00:06]} 6. Qe2+ {[%emt 0:00:15] The position is equal.} Be6 {[%emt 0:04:10] C01: French: Exchange Variation.} 7. Ng5 {[%emt 0:00:19]} Qe7 {[%emt 0:00:08]} 8. Nxe6 {[%emt 0:00:07]} fxe6 {[%emt 0:00:09]} 9. Nd2 {[%emt 0:00:13]} Nc6 {[%emt 0:05:36]} 10. Nf3 {[%emt 0:00:11]} e5 {[%emt 0:01:11]} 11. dxe5 {[%emt 0:00:15]} Nxe5 {[%emt 0:00:07]} 12. Nxe5 {[%emt 0:00:06]} Qxe5 {[%emt 0:00:20]} 13. Qxe5+ {[%emt 0:10:43]} Bxe5 {[%emt 0:00:06]} 14. c3 {[%emt 0:00:18]} O-O {[%emt 0:02:19]} 15. O-O {[%emt 0:03:29] [#]} Bd6 $5 $146 {[%emt 0:11:38][%mdl 8] An interesting novelty.} ({Predecessor:} 15... Rae8 16. h3 d4 17. c4 Bd6 18. Bd2 Ne4 19. Bxe4 Rxe4 20. Rfe1 {½-½ (20) Vachier Lagrave,M (2780)-Andreikin,D (2724) Jerusalem 2019}) 16. g3 {[%emt 0:07:03]} Ng4 {[%emt 0:02:31][%cal Og4f2] Strongly threatening ...Nxf2!} 17. Kg2 {[%emt 0:07:32]} Bc5 {[%emt 0:01:00][%cal Rg4f2]} 18. f3 {[%emt 0:00:07]} Ne3+ {[%emt 0:10:29]} (18... Ne5 $5 {[%cal Re5d3]} 19. Be2 Rae8 $11) 19. Bxe3 {[%emt 0:00:10]} Bxe3 {[%emt 0:00:03]} 20. Rae1 {[%emt 0:01:30]} Rae8 {[%emt 0:02:00] Not much happened in this game.  Weighted Error Value: White=0.03 (flawless) /Black=0.03 (flawless)} 1/2-1/2

[Event "German Bundesliga 2022-23"]
[Site "Germany"]
[Date "2022.10.23"]
[Round "2.3"]
[White "Kempinski, Robert"]
[Black "Adams, Michael"]
[Result "1/2-1/2"]
[ECO "D56"]
[WhiteElo "2541"]
[BlackElo "2689"]
[Annotator "TA"]
[PlyCount "51"]
[EventDate "2022.10.21"]
[EventType "team-tourn"]
[EventCountry "GER"]
[SourceTitle "playchess.com"]
[Source "ChessBase"]
[SourceQuality "1"]
[TimeControl "40/6000+30:3000+30"]

{[%evp 13,51,21,17,8,28,22,26,22,24,19,29,10,16,17,30,43,29,8,60,16,8,0,0,0,0,0,11,0,14,8,12,6,7,14,8,8,4,7,10,0]} 1. d4 {[%emt 0:00:04]} Nf6 {[%emt 0:00:06]} 2. c4 {[%emt 0:00:15]} e6 {[%emt 0:00:05]} 3. Nf3 {[%emt 0:00:16]} d5 {[%emt 0:00:09]} 4. Nc3 {[%emt 0:00:23]} Nbd7 {[%emt 0:00:07]} 5. Bg5 {[%emt 0:02:54]} h6 {[%emt 0:00:14]} 6. Bh4 {[%emt 0:00:57]} Be7 {[%emt 0:00:06]} 7. e3 {[%emt 0:01:38]} O-O {[%emt 0:00:32]} 8. Be2 {[%emt 0:00:58] D56: Queen's Gambit Declined: Lasker Defence.} c5 {[%emt 0:06:35] 8...dxc4 gains popularity.} 9. cxd5 {[%emt 0:02:30]} Nxd5 {[%emt 0:00:23]} 10. Bxe7 {[%emt 0:02:03] White has an edge.} Nxe7 {[%emt 0:00:22]} 11. dxc5 {[%emt 0:07:10]} Nxc5 {[%emt 0:00:47]} 12. b4 {[%emt 0:02:27] [#] Threatens to win with Qxd8.} Qxd1+ $146 {[%emt 0:19:35]} ({Predecessor:} 12... Nd7 13. O-O Nf6 14. Qb3 Ned5 15. Rfd1 Qe7 16. a3 b6 17. Nxd5 Nxd5 18. Nd4 Bb7 {1-0 (59) Sieciechowicz,M (2399)-Praczukowski,S (2166) Darlowko 2019}) 13. Rxd1 {[%emt 0:01:32]} Na6 {[%emt 0:07:16]} 14. a3 {[%emt 0:03:43]} Nc7 {[%emt 0:00:04]} 15. Bc4 {[%emt 0:16:30] Against Ncd5} Rb8 {[%emt 0:12:48]} ({Black should play} 15... a6 $11) 16. Ke2 {[%emt 0:06:29]} b5 {[%emt 0:04:57] The position is equal.} 17. Bb3 {[%emt 0:04:01]} a5 {[%emt 0:04:50]} 18. Ne5 {[%emt 0:03:49]} ({But not} 18. bxa5 Ba6 19. Kd2 Nc6 $15) 18... axb4 {[%emt 0:01:19]} 19. axb4 {[%emt 0:00:08]} Na6 {[%emt 0:00:09]} 20. Na2 {[%emt 0:00:58]} Rb6 {[%emt 0:04:33]} 21. e4 {[%emt 0:03:26]} Nb8 {[%emt 0:02:18]} 22. Ke3 {[%emt 0:06:53]} Nec6 {[%emt 0:01:52]} 23. Nd3 {[%emt 0:03:19]} Na6 {[%emt 0:03:40]} 24. Rd2 {[%emt 0:04:10]} Rd8 {[%emt 0:03:22]} 25. Rc1 {[%emt 0:03:37]} Kf8 {[%emt 0:03:35]} 26. f4 {[%emt 0:09:54] Weighted Error Value: White=0.07 (flawless) /Black=0.09 (flawless)} 1/2-1/2